[Event "Titled Tuesday Blitz May 16 Late 2023"]
[White "Deac, Bogdan-Daniel"]
[Black "Soham Kamotra"]
[WhiteFideId "1226380"]
[BlackFideId "46647490"]
[WhiteElo "2649"]
[BlackElo "2209"]
[Result "1-0"]
[Round "02"]
[TimeControl "180+2"]
[Date "2023.05.16"]
[WhiteClock "0:00:05"]
[BlackClock "0:00:10"]

1. b3 {[%clk 0:03:00]}  Nf6 {[%clk 0:02:50]} 2. Bb2 {[%clk 0:03:01]}  d5 {[%clk 0:02:50]} 3. e3 {[%clk 0:03:01]}  Bf5 {[%clk 0:02:51]} 4. c4 {[%clk 0:03:01]}  c6 {[%clk 0:02:51]} 5. cxd5 {[%clk 0:03:01]}  cxd5 {[%clk 0:02:51]} 6. Bb5+ {[%clk 0:03:00]}  Bd7 {[%clk 0:02:49]} 7. Qe2 {[%clk 0:02:56]}  Bxb5 {[%clk 0:02:47]} 8. Qxb5+ {[%clk 0:02:56]}  Qd7 {[%clk 0:02:48]} 9. Nc3 {[%clk 0:02:52]}  a6 {[%clk 0:02:23]} 10. Qe2 {[%clk 0:02:51]}  Nc6 {[%clk 0:02:19]} 11. Na4 {[%clk 0:02:42]}  Qd6 {[%clk 0:02:14]} 12. d4 {[%clk 0:02:37]}  e6 {[%clk 0:02:09]} 13. Nf3 {[%clk 0:02:34]}  Qb4+ {[%clk 0:02:07]} 14. Bc3 {[%clk 0:02:32]}  Qb5 {[%clk 0:02:07]} 15. Nd2 {[%clk 0:01:57]}  Bd6 {[%clk 0:01:50]} 16. Nb2 {[%clk 0:01:48]}  Qxe2+ {[%clk 0:01:44]} 17. Kxe2 {[%clk 0:01:47]}  b5 {[%clk 0:01:44]} 18. Nd3 {[%clk 0:01:45]}  Nd7 {[%clk 0:01:37]} 19. Rhc1 {[%clk 0:01:40]}  Ke7 {[%clk 0:01:31]} 20. Rc2 {[%clk 0:01:29]}  Rhc8 {[%clk 0:01:29]} 21. Rac1 {[%clk 0:01:29]}  Ra7 {[%clk 0:01:15]} 22. Ba5 {[%clk 0:01:24]}  Ndb8 {[%clk 0:01:01]} 23. Bb6 {[%clk 0:00:55]}  Rb7 {[%clk 0:00:57]} 24. Bc5 {[%clk 0:00:56]}  Rbc7 {[%clk 0:00:49]} 25. b4 {[%clk 0:00:47]}  Bxc5 {[%clk 0:00:36]} 26. bxc5 {[%clk 0:00:44]}  Na5 {[%clk 0:00:37]} 27. a4 {[%clk 0:00:39]}  Nbc6 {[%clk 0:00:33]} 28. axb5 {[%clk 0:00:33]}  axb5 {[%clk 0:00:33]} 29. Rb1 {[%clk 0:00:31]}  Rb8 {[%clk 0:00:32]} 30. Ra2 {[%clk 0:00:30]}  Rcb7 {[%clk 0:00:23]} 31. Nb3 {[%clk 0:00:25]}  Nxb3 {[%clk 0:00:12]} 32. Rxb3 {[%clk 0:00:26]}  Ra7 {[%clk 0:00:10]} 33. Rxa7+ {[%clk 0:00:21]}  Nxa7 {[%clk 0:00:11]} 34. Nb4 {[%clk 0:00:21]}  Kd7 {[%clk 0:00:07]} 35. Ra3 {[%clk 0:00:20]}  Nc6 {[%clk 0:00:08]} 36. Nxc6 {[%clk 0:00:20]}  Kxc6 {[%clk 0:00:09]} 37. Ra7 {[%clk 0:00:14]}  Rb7 {[%clk 0:00:09]} 38. Ra6+ {[%clk 0:00:13]}  Kc7 {[%clk 0:00:08]} 39. Kd2 {[%clk 0:00:14]}  b4 {[%clk 0:00:06]} 40. Kc2 {[%clk 0:00:14]}  b3+ {[%clk 0:00:06]} 41. Kb2 {[%clk 0:00:14]}  Rb5 {[%clk 0:00:06]} 42. Ra7+ {[%clk 0:00:13]}  Kc6 {[%clk 0:00:05]} 43. Rxf7 {[%clk 0:00:14]}  e5 {[%clk 0:00:06]} 44. Rxg7 {[%clk 0:00:11]}  exd4 {[%clk 0:00:07]} 45. exd4 {[%clk 0:00:12]}  Rb4 {[%clk 0:00:07]} 46. Rxh7 {[%clk 0:00:05]}  Rxd4 {[%clk 0:00:07]} 47. Kxb3 {[%clk 0:00:05]}  Rd2 {[%clk 0:00:06]} 48. Rf7 {[%clk 0:00:05]}  Kxc5 {[%clk 0:00:07]} 49. Kc3 {[%clk 0:00:05]}  Ra2 {[%clk 0:00:07]} 50. h4 {[%clk 0:00:06]}  Ra3+ {[%clk 0:00:07]} 51. Kd2 {[%clk 0:00:06]}  Kd4 {[%clk 0:00:08]} 52. Ke2 {[%clk 0:00:06]}  Ra2+ {[%clk 0:00:08]} 53. Kf3 {[%clk 0:00:06]}  Kd3 {[%clk 0:00:08]} 54. h5 {[%clk 0:00:06]}  d4 {[%clk 0:00:08]} 55. h6 {[%clk 0:00:06]}  Ra1 {[%clk 0:00:09]} 56. h7 {[%clk 0:00:05]}  Rh1 {[%clk 0:00:10]} 57. g4 {[%clk 0:00:06]}  Kd2 {[%clk 0:00:09]} 58. g5 {[%clk 0:00:06]}  Ke1 {[%clk 0:00:10]} 59. g6 {[%clk 0:00:05]}  Rh2 {[%clk 0:00:11]} 60. Kg3 {[%clk 0:00:05]}  Rh1 {[%clk 0:00:11]} 61. g7 {[%clk 0:00:05]}  d3 {[%clk 0:00:12]} 62. g8=Q {[%clk 0:00:05]}  Rg1+ {[%clk 0:00:11]} 63. Kh2 {[%clk 0:00:05]}  Rxg8 {[%clk 0:00:12]} 64. hxg8=Q {[%clk 0:00:05]}  d2 {[%clk 0:00:12]} 65. Qe8+ {[%clk 0:00:06]}  Kf1 {[%clk 0:00:11]} 66. Rd7 {[%clk 0:00:06]}  Kxf2 {[%clk 0:00:09]} 67. Rxd2+ {[%clk 0:00:06]}  Kf1 {[%clk 0:00:10]} 68. Qe2# {[%clk 0:00:05]} 1-0


[Site "https://www.chess.com"]

[Event "Titled Tuesday Blitz May 16 Late 2023"]
[White "Andreikin, Dmitry"]
[Black "Defend1r"]
[WhiteFideId "4158814"]
[WhiteElo "2736"]
[BlackElo "2639"]
[Result "1-0"]
[Round "02"]
[TimeControl "180+2"]
[Date "2023.05.16"]
[WhiteClock "0:01:29"]
[BlackClock "0:00:28"]

1. e4 {[%clk 0:03:00]}  c5 {[%clk 0:02:59]} 2. Nf3 {[%clk 0:03:00]}  d6 {[%clk 0:02:58]} 3. d4 {[%clk 0:02:59]}  cxd4 {[%clk 0:02:59]} 4. Nxd4 {[%clk 0:02:59]}  Nf6 {[%clk 0:03:00]} 5. Nc3 {[%clk 0:03:00]}  a6 {[%clk 0:03:00]} 6. Bg5 {[%clk 0:02:59]}  e6 {[%clk 0:02:59]} 7. f4 {[%clk 0:02:58]}  Qb6 {[%clk 0:02:59]} 8. Qd2 {[%clk 0:02:52]}  Qxb2 {[%clk 0:02:59]} 9. Rb1 {[%clk 0:02:52]}  Qa3 {[%clk 0:02:59]} 10. f5 {[%clk 0:02:53]}  Nc6 {[%clk 0:02:59]} 11. fxe6 {[%clk 0:02:53]}  fxe6 {[%clk 0:02:58]} 12. Nxc6 {[%clk 0:02:52]}  bxc6 {[%clk 0:02:59]} 13. Be2 {[%clk 0:02:52]}  Qc5 {[%clk 0:02:39]} 14. Be3 {[%clk 0:02:47]}  Qa5 {[%clk 0:02:39]} 15. O-O {[%clk 0:02:44]}  Be7 {[%clk 0:02:23]} 16. Bb6 {[%clk 0:02:43]}  Qe5 {[%clk 0:02:18]} 17. Bd4 {[%clk 0:02:39]}  Qa5 {[%clk 0:02:17]} 18. Kh1 {[%clk 0:02:20]}  c5 {[%clk 0:02:07]} 19. Bxf6 {[%clk 0:02:08]}  gxf6 {[%clk 0:01:56]} 20. e5 {[%clk 0:02:03]}  fxe5 {[%clk 0:01:51]} 21. Bf3 {[%clk 0:02:03]}  Ra7 {[%clk 0:01:47]} 22. Rb8 {[%clk 0:01:55]}  Kd8 {[%clk 0:01:46]} 23. Qh6 {[%clk 0:01:47]}  Kc7 {[%clk 0:01:10]} 24. Rxc8+ {[%clk 0:01:43]}  Rxc8 {[%clk 0:01:05]} 25. Qxe6 {[%clk 0:01:43]}  Qxc3 {[%clk 0:00:55]} 26. Qxe7+ {[%clk 0:01:42]}  Kb6 {[%clk 0:00:53]} 27. Rb1+ {[%clk 0:01:41]}  Ka5 {[%clk 0:00:40]} 28. Qxa7 {[%clk 0:01:40]}  Qc4 {[%clk 0:00:38]} 29. Qb6+ {[%clk 0:01:34]}  Ka4 {[%clk 0:00:39]} 30. Bd5 {[%clk 0:01:34]}  Qb5 {[%clk 0:00:27]} 31. Rxb5 {[%clk 0:01:29]}  axb5 {[%clk 0:00:28]} 1-0


[Site "https://www.chess.com"]

[Event "Titled Tuesday Blitz May 16 Late 2023"]
[White "Bortnyk, Olexandr"]
[Black "Suder, Jakub"]
[WhiteFideId "14120828"]
[BlackFideId "1195310"]
[WhiteElo "2734"]
[BlackElo "2287"]
[Result "1-0"]
[Round "02"]
[TimeControl "180+2"]
[Date "2023.05.16"]
[WhiteClock "0:00:07"]
[BlackClock "0:00:20"]

1. d4 {[%clk 0:03:00]}  d5 {[%clk 0:02:59]} 2. Nc3 {[%clk 0:03:01]}  Nf6 {[%clk 0:02:59]} 3. Bf4 {[%clk 0:03:01]}  a6 {[%clk 0:02:58]} 4. e3 {[%clk 0:03:01]}  c5 {[%clk 0:02:56]} 5. dxc5 {[%clk 0:03:02]}  Nc6 {[%clk 0:02:56]} 6. a3 {[%clk 0:03:01]}  e5 {[%clk 0:02:55]} 7. Bg5 {[%clk 0:03:00]}  Be6 {[%clk 0:02:54]} 8. b4 {[%clk 0:02:51]}  Be7 {[%clk 0:02:54]} 9. Nf3 {[%clk 0:02:40]}  O-O {[%clk 0:02:52]} 10. Na4 {[%clk 0:02:40]}  Qc7 {[%clk 0:02:52]} 11. Be2 {[%clk 0:02:34]}  Rad8 {[%clk 0:02:49]} 12. O-O {[%clk 0:02:34]}  Ne4 {[%clk 0:02:41]} 13. Bxe7 {[%clk 0:02:33]}  Qxe7 {[%clk 0:02:42]} 14. Qc1 {[%clk 0:02:23]}  f5 {[%clk 0:02:36]} 15. Qb2 {[%clk 0:02:22]}  Qf6 {[%clk 0:02:34]} 16. Kh1 {[%clk 0:02:21]}  g5 {[%clk 0:02:34]} 17. Rad1 {[%clk 0:02:20]}  g4 {[%clk 0:02:34]} 18. Nd2 {[%clk 0:02:21]}  Qh4 {[%clk 0:02:26]} 19. Nxe4 {[%clk 0:01:41]}  fxe4 {[%clk 0:02:22]} 20. c4 {[%clk 0:01:41]}  d4 {[%clk 0:02:15]} 21. b5 {[%clk 0:01:40]}  d3 {[%clk 0:02:06]} 22. bxc6 {[%clk 0:01:38]}  dxe2 {[%clk 0:02:02]} 23. Qxe2 {[%clk 0:01:35]}  bxc6 {[%clk 0:01:59]} 24. Nc3 {[%clk 0:01:29]}  Rxd1 {[%clk 0:01:56]} 25. Qxd1 {[%clk 0:00:36]}  Rxf2 {[%clk 0:01:53]} 26. Rxf2 {[%clk 0:00:25]}  Qxf2 {[%clk 0:01:53]} 27. Nxe4 {[%clk 0:00:25]}  Qf5 {[%clk 0:01:48]} 28. Qd8+ {[%clk 0:00:22]}  Kg7 {[%clk 0:01:45]} 29. Qg5+ {[%clk 0:00:08]}  Qxg5 {[%clk 0:01:44]} 30. Nxg5 {[%clk 0:00:08]}  Bxc4 {[%clk 0:01:44]} 31. Ne4 {[%clk 0:00:09]}  Bd3 {[%clk 0:01:25]} 32. Nc3 {[%clk 0:00:06]}  h5 {[%clk 0:01:17]} 33. Kg1 {[%clk 0:00:06]}  Kf6 {[%clk 0:01:15]} 34. Kf2 {[%clk 0:00:07]}  e4 {[%clk 0:01:12]} 35. Kg3 {[%clk 0:00:07]}  Kg5 {[%clk 0:01:12]} 36. Na4 {[%clk 0:00:04]}  h4+ {[%clk 0:01:11]} 37. Kf2 {[%clk 0:00:04]}  Kf5 {[%clk 0:01:11]} 38. g3 {[%clk 0:00:03]}  h3 {[%clk 0:01:09]} 39. Nb6 {[%clk 0:00:03]}  Ke6 {[%clk 0:01:07]} 40. Ke1 {[%clk 0:00:04]}  Bc2 {[%clk 0:01:02]} 41. Kd2 {[%clk 0:00:04]}  Bd3 {[%clk 0:01:00]} 42. Kc3 {[%clk 0:00:05]}  Ke5 {[%clk 0:01:00]} 43. Kb4 {[%clk 0:00:05]}  Be2 {[%clk 0:00:54]} 44. Na8 {[%clk 0:00:03]}  Bf1 {[%clk 0:00:38]} 45. Nc7 {[%clk 0:00:03]}  Be2 {[%clk 0:00:37]} 46. Ka5 {[%clk 0:00:04]}  Bb5 {[%clk 0:00:28]} 47. Kb6 {[%clk 0:00:04]}  Ba4 {[%clk 0:00:26]} 48. Kxa6 {[%clk 0:00:04]}  Bb3 {[%clk 0:00:24]} 49. Kb6 {[%clk 0:00:04]}  Ba4 {[%clk 0:00:24]} 50. Ka5 {[%clk 0:00:05]}  Bb3 {[%clk 0:00:23]} 51. Kb4 {[%clk 0:00:05]}  Bc2 {[%clk 0:00:23]} 52. a4 {[%clk 0:00:06]}  Bd3 {[%clk 0:00:20]} 53. a5 {[%clk 0:00:07]} 1-0


[Site "https://www.chess.com"]

[Event "Titled Tuesday Blitz May 16 Late 2023"]
[White "Iliaguev, Nisim"]
[Black "Sarana, Alexey"]
[WhiteFideId "2817276"]
[BlackFideId "24133795"]
[WhiteElo "2241"]
[BlackElo "2714"]
[Result "1-0"]
[Round "02"]
[TimeControl "180+2"]
[Date "2023.05.16"]
[WhiteClock "0:00:16"]
[BlackClock "0:00:01"]

1. c4 {[%clk 0:03:00]}  e5 {[%clk 0:02:57]} 2. g3 {[%clk 0:03:01]}  c6 {[%clk 0:02:57]} 3. Bg2 {[%clk 0:03:01]}  d5 {[%clk 0:02:57]} 4. cxd5 {[%clk 0:03:02]}  cxd5 {[%clk 0:02:58]} 5. d4 {[%clk 0:03:03]}  e4 {[%clk 0:02:58]} 6. Nh3 {[%clk 0:03:03]}  Nc6 {[%clk 0:02:52]} 7. O-O {[%clk 0:03:03]}  h6 {[%clk 0:02:49]} 8. Nc3 {[%clk 0:03:03]}  Nf6 {[%clk 0:02:49]} 9. a3 {[%clk 0:02:58]}  Bd6 {[%clk 0:02:44]} 10. Nf4 {[%clk 0:02:55]}  Bc7 {[%clk 0:02:37]} 11. e3 {[%clk 0:02:50]}  O-O {[%clk 0:02:36]} 12. b4 {[%clk 0:02:49]}  Ne7 {[%clk 0:02:30]} 13. a4 {[%clk 0:02:39]}  g5 {[%clk 0:02:29]} 14. Nh5 {[%clk 0:02:26]}  Nxh5 {[%clk 0:02:19]} 15. Qxh5 {[%clk 0:02:27]}  Kg7 {[%clk 0:02:18]} 16. f3 {[%clk 0:02:18]}  exf3 {[%clk 0:02:14]} 17. Bxf3 {[%clk 0:02:19]}  Be6 {[%clk 0:02:10]} 18. Bb2 {[%clk 0:02:10]}  Ng8 {[%clk 0:01:57]} 19. Bg2 {[%clk 0:02:07]}  Nf6 {[%clk 0:01:56]} 20. Qf3 {[%clk 0:02:00]}  Qe7 {[%clk 0:01:38]} 21. b5 {[%clk 0:01:38]}  Rad8 {[%clk 0:01:31]} 22. Rae1 {[%clk 0:01:34]}  Ba5 {[%clk 0:00:40]} 23. e4 {[%clk 0:01:11]}  Bxc3 {[%clk 0:00:24]} 24. Qxc3 {[%clk 0:01:12]}  Rfe8 {[%clk 0:00:04]} 25. Re2 {[%clk 0:00:58]}  Kg8 {[%clk 0:00:04]} 26. Ba3 {[%clk 0:00:51]}  Nxe4 {[%clk 0:00:04]} 27. Rxe4 {[%clk 0:00:39]}  Qd7 {[%clk 0:00:03]} 28. Re3 {[%clk 0:00:37]}  Rc8 {[%clk 0:00:03]} 29. Qd2 {[%clk 0:00:35]}  Rc4 {[%clk 0:00:04]} 30. h4 {[%clk 0:00:25]}  Rxa4 {[%clk 0:00:03]} 31. hxg5 {[%clk 0:00:23]}  hxg5 {[%clk 0:00:04]} 32. Ref3 {[%clk 0:00:23]}  Qd8 {[%clk 0:00:01]} 33. Bc1 {[%clk 0:00:23]}  Qe7 {[%clk 0:00:01]} 34. Qxg5+ {[%clk 0:00:22]}  Qxg5 {[%clk 0:00:01]} 35. Bxg5 {[%clk 0:00:22]}  Rc8 {[%clk 0:00:01]} 36. Bf6 {[%clk 0:00:19]}  Rc2 {[%clk 0:00:01]} 37. R3f2 {[%clk 0:00:19]}  Raa2 {[%clk 0:00:01]} 38. Rxc2 {[%clk 0:00:19]}  Rxc2 {[%clk 0:00:02]} 39. Be5 {[%clk 0:00:18]}  Kh7 {[%clk 0:00:02]} 40. Bf3 {[%clk 0:00:17]}  Rb2 {[%clk 0:00:02]} 41. Rf2 {[%clk 0:00:16]}  Rb1+ {[%clk 0:00:02]} 42. Kg2 {[%clk 0:00:15]}  Rxb5 {[%clk 0:00:02]} 43. Be2 {[%clk 0:00:16]}  Kg6 {[%clk 0:00:01]} 44. Bxb5 {[%clk 0:00:16]} 1-0


[Site "https://www.chess.com"]

[Event "Titled Tuesday Blitz May 16 Late 2023"]
[White "TimGrutter03"]
[Black "Makarian, Rudik"]
[BlackFideId "44105681"]
[WhiteElo "2634"]
[BlackElo "2461"]
[Result "0-1"]
[Round "02"]
[TimeControl "180+2"]
[Date "2023.05.16"]
[WhiteClock "0:00:05"]
[BlackClock "0:00:59"]

1. e4 {[%clk 0:03:00]}  c5 {[%clk 0:02:59]} 2. Nf3 {[%clk 0:02:54]}  Nc6 {[%clk 0:02:57]} 3. Bb5 {[%clk 0:02:49]}  e6 {[%clk 0:02:39]} 4. O-O {[%clk 0:02:49]}  Nd4 {[%clk 0:02:33]} 5. Nxd4 {[%clk 0:02:43]}  cxd4 {[%clk 0:02:34]} 6. c3 {[%clk 0:02:41]}  a6 {[%clk 0:02:35]} 7. Ba4 {[%clk 0:02:40]}  b5 {[%clk 0:02:33]} 8. Bb3 {[%clk 0:02:34]}  Bc5 {[%clk 0:02:31]} 9. cxd4 {[%clk 0:02:33]}  Bxd4 {[%clk 0:02:30]} 10. d3 {[%clk 0:02:29]}  Ne7 {[%clk 0:02:25]} 11. Qe2 {[%clk 0:02:27]}  O-O {[%clk 0:02:25]} 12. Be3 {[%clk 0:02:25]}  Nc6 {[%clk 0:02:25]} 13. Nc3 {[%clk 0:02:15]}  Bb7 {[%clk 0:02:22]} 14. Rac1 {[%clk 0:02:14]}  Rc8 {[%clk 0:02:23]} 15. Qd2 {[%clk 0:02:09]}  Qb6 {[%clk 0:02:21]} 16. Ne2 {[%clk 0:02:04]}  Bxe3 {[%clk 0:02:20]} 17. fxe3 {[%clk 0:01:44]}  Ne5 {[%clk 0:02:20]} 18. Nd4 {[%clk 0:01:36]}  a5 {[%clk 0:02:12]} 19. a3 {[%clk 0:01:32]}  b4 {[%clk 0:02:09]} 20. axb4 {[%clk 0:01:25]}  Qxb4 {[%clk 0:01:58]} 21. Qxb4 {[%clk 0:01:06]}  axb4 {[%clk 0:01:59]} 22. Rxc8 {[%clk 0:00:59]}  Rxc8 {[%clk 0:02:00]} 23. Rd1 {[%clk 0:00:59]}  Ba6 {[%clk 0:01:59]} 24. Bc2 {[%clk 0:01:00]}  Ng4 {[%clk 0:01:32]} 25. Ba4 {[%clk 0:00:38]}  Nxe3 {[%clk 0:01:26]} 26. Re1 {[%clk 0:00:37]}  Ng4 {[%clk 0:01:26]} 27. Bb5 {[%clk 0:00:20]}  Bxb5 {[%clk 0:01:24]} 28. Nxb5 {[%clk 0:00:21]}  Rc2 {[%clk 0:01:22]} 29. Ra1 {[%clk 0:00:17]}  g5 {[%clk 0:01:23]} 30. h3 {[%clk 0:00:17]}  Ne3 {[%clk 0:01:15]} 31. b3 {[%clk 0:00:16]}  Rxg2+ {[%clk 0:01:14]} 32. Kh1 {[%clk 0:00:16]}  Rd2 {[%clk 0:01:11]} 33. d4 {[%clk 0:00:15]}  h5 {[%clk 0:01:10]} 34. Ra4 {[%clk 0:00:14]}  g4 {[%clk 0:01:10]} 35. hxg4 {[%clk 0:00:15]}  hxg4 {[%clk 0:01:11]} 36. Ra1 {[%clk 0:00:12]}  g3 {[%clk 0:01:11]} 37. Nd6 {[%clk 0:00:07]}  Rxd4 {[%clk 0:01:06]} 38. Ne8 {[%clk 0:00:07]}  Rd2 {[%clk 0:01:02]} 39. Nf6+ {[%clk 0:00:07]}  Kf8 {[%clk 0:00:59]} 40. Nh5 {[%clk 0:00:07]}  Rh2+ {[%clk 0:00:58]} 41. Kg1 {[%clk 0:00:05]}  Rxh5 {[%clk 0:00:59]} 0-1


[Site "https://www.chess.com"]

[Event "Titled Tuesday Blitz May 16 Late 2023"]
[White "Zhigalko, Sergei"]
[Black "Popilski, Gil"]
[WhiteFideId "13502956"]
[BlackFideId "2809060"]
[WhiteElo "2626"]
[BlackElo "2537"]
[Result "0-1"]
[Round "02"]
[TimeControl "180+2"]
[Date "2023.05.16"]
[WhiteClock "0:00:00"]
[BlackClock "0:00:04"]

1. e4 {[%clk 0:03:00]}  c5 {[%clk 0:02:56]} 2. Nf3 {[%clk 0:03:01]}  g6 {[%clk 0:02:52]} 3. c3 {[%clk 0:03:01]}  d5 {[%clk 0:02:50]} 4. exd5 {[%clk 0:03:00]}  Qxd5 {[%clk 0:02:50]} 5. d4 {[%clk 0:03:01]}  Bg7 {[%clk 0:02:49]} 6. Na3 {[%clk 0:03:01]}  cxd4 {[%clk 0:02:48]} 7. Bc4 {[%clk 0:03:01]}  Qd8 {[%clk 0:02:46]} 8. Nb5 {[%clk 0:02:58]}  a6 {[%clk 0:02:33]} 9. Nbxd4 {[%clk 0:02:57]}  Nf6 {[%clk 0:02:31]} 10. O-O {[%clk 0:02:54]}  O-O {[%clk 0:02:31]} 11. Re1 {[%clk 0:02:55]}  b5 {[%clk 0:02:26]} 12. Bb3 {[%clk 0:02:55]}  Bb7 {[%clk 0:02:26]} 13. Bg5 {[%clk 0:02:55]}  Nbd7 {[%clk 0:02:25]} 14. a4 {[%clk 0:02:44]}  bxa4 {[%clk 0:02:13]} 15. Bxa4 {[%clk 0:02:44]}  Nc5 {[%clk 0:02:13]} 16. Bc6 {[%clk 0:02:30]}  Qc7 {[%clk 0:02:09]} 17. Bxb7 {[%clk 0:02:23]}  Qxb7 {[%clk 0:02:07]} 18. Qe2 {[%clk 0:02:23]}  Rfe8 {[%clk 0:02:05]} 19. Bh4 {[%clk 0:01:44]}  a5 {[%clk 0:01:59]} 20. Ne5 {[%clk 0:01:39]}  a4 {[%clk 0:01:54]} 21. Qc4 {[%clk 0:01:03]}  Rec8 {[%clk 0:01:46]} 22. Qxf7+ {[%clk 0:00:48]}  Kh8 {[%clk 0:01:41]} 23. Qa2 {[%clk 0:00:15]}  Nb3 {[%clk 0:01:39]} 24. Rad1 {[%clk 0:00:14]}  Ne4 {[%clk 0:01:28]} 25. Bg3 {[%clk 0:00:11]}  Nxg3 {[%clk 0:01:02]} 26. hxg3 {[%clk 0:00:10]}  Bf6 {[%clk 0:01:00]} 27. Ndf3 {[%clk 0:00:06]}  Kg7 {[%clk 0:00:48]} 28. Rd7 {[%clk 0:00:05]}  Qb5 {[%clk 0:00:48]} 29. Qb1 {[%clk 0:00:04]}  Rd8 {[%clk 0:00:43]} 30. Rxd8 {[%clk 0:00:04]}  Rxd8 {[%clk 0:00:43]} 31. Qe4 {[%clk 0:00:05]}  Nd2 {[%clk 0:00:35]} 32. Qe3 {[%clk 0:00:01]}  Nxf3+ {[%clk 0:00:33]} 33. gxf3 {[%clk 0:00:01]}  Qxb2 {[%clk 0:00:33]} 34. Ng4 {[%clk 0:00:01]}  Qxc3 {[%clk 0:00:31]} 35. Qh6+ {[%clk 0:00:02]}  Kg8 {[%clk 0:00:31]} 36. Rc1 {[%clk 0:00:02]}  Qd2 {[%clk 0:00:28]} 37. Qxd2 {[%clk 0:00:02]}  Rxd2 {[%clk 0:00:27]} 38. Rc8+ {[%clk 0:00:02]}  Kf7 {[%clk 0:00:26]} 39. Ra8 {[%clk 0:00:03]}  Rd4 {[%clk 0:00:23]} 40. Kg2 {[%clk 0:00:02]}  h5 {[%clk 0:00:23]} 41. Ne3 {[%clk 0:00:02]}  Rb4 {[%clk 0:00:21]} 42. Nd5 {[%clk 0:00:02]}  Rd4 {[%clk 0:00:17]} 43. Nb6 {[%clk 0:00:02]}  Rd2 {[%clk 0:00:17]} 44. Nc4 {[%clk 0:00:01]}  Ra2 {[%clk 0:00:16]} 45. f4 {[%clk 0:00:01]}  Bd4 {[%clk 0:00:15]} 46. Kf3 {[%clk 0:00:02]}  Bxf2 {[%clk 0:00:15]} 47. Ne5+ {[%clk 0:00:02]}  Ke6 {[%clk 0:00:14]} 48. Ra6+ {[%clk 0:00:02]}  Kd5 {[%clk 0:00:14]} 49. Nxg6 {[%clk 0:00:03]}  Be1 {[%clk 0:00:14]} 50. Nxe7+ {[%clk 0:00:03]}  Kc4 {[%clk 0:00:13]} 51. f5 {[%clk 0:00:02]}  Rf2+ {[%clk 0:00:13]} 52. Ke3 {[%clk 0:00:03]}  Kb3 {[%clk 0:00:10]} 53. Nc6 {[%clk 0:00:02]}  Rf1 {[%clk 0:00:09]} 54. Ke2 {[%clk 0:00:02]}  Rh1 {[%clk 0:00:07]} 55. f6 {[%clk 0:00:02]}  Bc3 {[%clk 0:00:07]} 56. f7 {[%clk 0:00:02]}  Bg7 {[%clk 0:00:07]} 57. Nd4+ {[%clk 0:00:03]}  Kb4 {[%clk 0:00:05]} 58. Nf5 {[%clk 0:00:02]}  Bf8 {[%clk 0:00:05]} 59. Ra8 {[%clk 0:00:02]}  Bc5 {[%clk 0:00:06]} 60. Rb8+ {[%clk 0:00:03]}  Ka5 {[%clk 0:00:04]} 61. Rc8 {[%clk 0:00:02]}  Bb4 {[%clk 0:00:04]} 62. f8=Q {[%clk 0:00:02]}  Bxf8 {[%clk 0:00:04]} 63. Rxf8 {[%clk 0:00:03]}  a3 {[%clk 0:00:04]} 64. Ra8+ {[%clk 0:00:03]}  Kb4 {[%clk 0:00:05]} 65. Ne3 {[%clk 0:00:03]}  a2 {[%clk 0:00:04]} 66. Nc2+ {[%clk 0:00:02]}  Kb3 {[%clk 0:00:03]} 67. Nd4+ {[%clk 0:00:03]}  Kb2 {[%clk 0:00:04]} 68. Rb8+ {[%clk 0:00:04]}  Kc3 {[%clk 0:00:04]} 69. Nb3 {[%clk 0:00:00]}  Rb1 {[%clk 0:00:04]} 0-1


[Site "https://www.chess.com"]

[Event "Titled Tuesday Blitz May 16 Late 2023"]
[White "Schnaider, Ilan"]
[Black "Hakobyan, Aram"]
[WhiteFideId "169013"]
[BlackFideId "13306677"]
[WhiteElo "2224"]
[BlackElo "2584"]
[Result "0-1"]
[Round "02"]
[TimeControl "180+2"]
[Date "2023.05.16"]
[WhiteClock "0:00:06"]
[BlackClock "0:00:47"]

1. e4 {[%clk 0:03:00]}  g6 {[%clk 0:02:58]} 2. d4 {[%clk 0:03:00]}  Bg7 {[%clk 0:02:59]} 3. Nc3 {[%clk 0:03:00]}  c5 {[%clk 0:02:59]} 4. d5 {[%clk 0:02:50]}  d6 {[%clk 0:02:58]} 5. h3 {[%clk 0:02:47]}  Nf6 {[%clk 0:02:58]} 6. Nf3 {[%clk 0:02:47]}  O-O {[%clk 0:02:59]} 7. Be2 {[%clk 0:02:47]}  b5 {[%clk 0:02:58]} 8. Nxb5 {[%clk 0:02:16]}  Nxe4 {[%clk 0:02:56]} 9. O-O {[%clk 0:02:17]}  Nd7 {[%clk 0:02:52]} 10. Bd3 {[%clk 0:02:12]}  Nef6 {[%clk 0:02:49]} 11. Re1 {[%clk 0:02:09]}  a6 {[%clk 0:02:40]} 12. Na3 {[%clk 0:02:02]}  Nb6 {[%clk 0:02:25]} 13. c4 {[%clk 0:01:58]}  e5 {[%clk 0:02:26]} 14. dxe6 {[%clk 0:01:57]}  Bxe6 {[%clk 0:02:25]} 15. Rb1 {[%clk 0:01:54]}  h6 {[%clk 0:02:16]} 16. b3 {[%clk 0:01:51]}  d5 {[%clk 0:02:13]} 17. Bb2 {[%clk 0:01:50]}  d4 {[%clk 0:02:09]} 18. b4 {[%clk 0:01:42]}  cxb4 {[%clk 0:02:00]} 19. Bxd4 {[%clk 0:01:42]}  a5 {[%clk 0:01:57]} 20. Bxg6 {[%clk 0:01:12]}  Nxc4 {[%clk 0:01:30]} 21. Nxc4 {[%clk 0:00:47]}  Bxc4 {[%clk 0:01:31]} 22. Bc2 {[%clk 0:00:47]}  Bxa2 {[%clk 0:01:24]} 23. Ra1 {[%clk 0:00:42]}  Bd5 {[%clk 0:01:08]} 24. Bxf6 {[%clk 0:00:42]}  Bxf6 {[%clk 0:01:08]} 25. Qd3 {[%clk 0:00:41]}  Re8 {[%clk 0:01:01]} 26. Rxe8+ {[%clk 0:00:11]}  Qxe8 {[%clk 0:01:02]} 27. Re1 {[%clk 0:00:11]}  Qc6 {[%clk 0:00:48]} 28. Qh7+ {[%clk 0:00:11]}  Kf8 {[%clk 0:00:49]} 29. Qxh6+ {[%clk 0:00:09]}  Bg7 {[%clk 0:00:49]} 30. Qd2 {[%clk 0:00:05]}  Bc3 {[%clk 0:00:48]} 31. Qg5 {[%clk 0:00:02]}  Bxe1 {[%clk 0:00:45]} 32. Ne5 {[%clk 0:00:01]}  Bxf2+ {[%clk 0:00:41]} 33. Kxf2 {[%clk 0:00:01]}  Qxc2+ {[%clk 0:00:41]} 34. Kg1 {[%clk 0:00:02]}  Qxg2+ {[%clk 0:00:41]} 35. Qxg2 {[%clk 0:00:02]}  Bxg2 {[%clk 0:00:42]} 36. Nd7+ {[%clk 0:00:02]}  Ke7 {[%clk 0:00:42]} 37. Nb6 {[%clk 0:00:03]}  Rb8 {[%clk 0:00:42]} 38. Nc4 {[%clk 0:00:04]}  b3 {[%clk 0:00:43]} 39. Nxa5 {[%clk 0:00:04]}  b2 {[%clk 0:00:44]} 40. Nc6+ {[%clk 0:00:05]}  Bxc6 {[%clk 0:00:44]} 41. Kh2 {[%clk 0:00:05]}  Rb3 {[%clk 0:00:45]} 42. h4 {[%clk 0:00:05]}  b1=Q {[%clk 0:00:46]} 43. h5 {[%clk 0:00:06]}  Qc2+ {[%clk 0:00:46]} 44. Kg1 {[%clk 0:00:06]}  Rb1# {[%clk 0:00:47]} 0-1


[Site "https://www.chess.com"]